bitfinex-derivatives/quotes_SOLF0:USTF0_20250514
["timestamp","ask_amount","ask_price","bid_price","bid_amount"]
[1747237178217,62.44,177.0,176.92,62.62]
[1747237179425,62.44,177.0,176.98,5.6493]
[1747237179825,62.44,177.0,176.92,62.62]
[1747237180025,62.44,177.0,176.96,5.6499]
[1747237180227,62.44,177.0,176.92,62.62]
[1747237180728,68.0889,177.0,176.92,62.62]
[1747237181133,62.44,177.0,176.92,62.62]
[1747237181522,62.54,177.0,176.92,62.62]
[1747237181726,5.6494,176.99,176.92,62.62]
[1747237182025,62.54,177.0,176.92,62.62]
[1747237182427,5.6496,176.98,176.94,5.6505]
[1747237182627,5.6496,176.98,176.92,62.62]
[1747237183027,5.6498,176.97,176.94,5.6505]
[1747237183424,62.54,177.0,176.94,5.6505]
[1747237183632,5.6497,176.98,176.94,5.6505]
[1747237184032,68.1889,177.0,176.92,62.62]
[1747237184630,68.1889,177.0,176.96,5.6499]
[1747237184834,5.6492,176.99,176.96,5.6499]
[1747237185031,62.54,177.0,176.92,62.62]
[1747237185532,62.5,177.02,176.93,5.7367]
[1747237185731,62.5,177.02,176.99,5.6489]
[1747237186032,10.0,177.05,176.97,62.6]
[1747237186231,62.48,177.04,176.97,62.6]
[1747237186633,5.6481,177.03,176.97,62.6]
[1747237186833,68.1281,177.03,176.97,62.6]
[1747237187031,5.6484,177.02,176.97,62.6]
[1747237187230,62.48,177.03,176.97,62.6]
[1747237187535,5.6482,177.02,176.99,5.6489]
[1747237187833,62.48,177.03,176.97,62.6]
[1747237188132,62.48,177.03,176.99,5.6489]
[1747237188429,62.48,177.03,176.97,62.6]
[1747237189235,15.6473,177.05,177.01,5.6483]
[1747237189534,73.18,177.05,176.97,62.6]
[1747237189732,9.3786,177.08,177.03,5.6477]
[1747237189933,63.4,177.07,176.97,62.6]
[1747237190137,63.38,177.08,176.97,62.6]
[1747237190532,69.0462,177.09,176.97,62.6]
[1747237190735,66.1315,177.13,176.98,11.2803606]
[1747237190929,63.38,177.12,176.99,63.38]
[1747237191329,5.6466,177.08,176.99,63.38]
[1747237191645,67.1515,177.13,176.99,63.38]
[1747237191831,63.62,177.13,177.0,5.5202]
[1747237192442,26.53882148,177.16,177.01,11.2803606]
[1747237192633,229.98289031,177.15,177.02,62.6]
[1747237193131,166.04289031,177.15,177.05,11.2803606]
[1747237193334,10.0,177.27,177.06,552.04]
[1747237193335,166.04289031,177.22,177.06,552.04]
[1747237193638,166.04289031,177.22,177.07,62.58]
[1747237194031,166.04289031,177.22,177.08,5.6621]
[1747237194234,228.62289031,177.22,177.09,126.58]
[1747237194535,5.643,177.19,177.12,5.645]
[1747237194735,69.603,177.19,177.12,5.645]
[1747237195045,5.6434,177.17,177.12,5.645]
[1747237195343,63.96,177.19,177.09,126.58]
[1747237195546,64.04,177.2,177.09,126.58]
[1747237195933,166.04289031,177.22,177.09,126.58]
[1747237196140,10.0,177.23,177.09,126.58]
[1747237196841,5.6432,177.18,177.09,126.58]
[1747237197043,10.0,177.23,177.1,128.02]
[1747237197239,74.0,177.23,177.08,5.6621]
[1747237197439,74.0,177.23,177.11,64.0]
[1747237197635,74.0,177.23,177.14,5.6443]
[1747237197840,74.0,177.23,177.11,64.0]
[1747237198741,5.6427,177.2,177.15,5.6438]
[1747237198943,5.6427,177.2,177.11,64.0]
[1747237199147,10.0,177.23,177.11,64.0]
[1747237199345,74.76,177.23,177.11,64.0]
[1747237199541,5.6421,177.22,177.11,64.0]
[1747237200044,64.7,177.22,177.11,64.0]
[1747237201147,64.7,177.22,177.17,5.6433]
[1747237201547,64.7,177.22,177.11,64.0]
[1747237202146,5.643,177.19,177.11,64.0]
[1747237202341,64.7,177.22,177.11,64.0]
[1747237202543,64.7,177.22,177.12,63.98]
[1747237203244,64.7,177.22,177.12,69.6248]
[1747237203445,10.0,177.21,177.06,488.14]
[1747237203643,11.2803606,177.19,177.07,63.98]
[1747237203848,63.98,177.18,177.07,63.98]
[1747237204048,65.08,177.17,177.07,63.98]
[1747237204247,5.645,177.13,177.07,63.98]
[1747237204548,65.06,177.12,177.07,63.98]
[1747237204944,5.6456,177.11,177.07,63.98]
[1747237205136,65.06,177.12,177.07,63.98]
[1747237205338,65.06,177.12,177.0,146.77252746]
[1747237205339,65.06,177.12,177.03,63.98]
[1747237205638,76.3403606,177.12,177.03,69.6278]
[1747237205841,1.8159,177.11,177.03,63.98]
[1747237207749,5.6473,177.05,176.99,63.98]
[1747237207946,65.12,177.05,176.97,551.86]
[1747237210154,70.7673,177.05,176.99,5.6491]
[1747237210543,5.6476,177.04,176.99,5.6491]
[1747237210749,65.12,177.05,176.97,551.86]
[1747237211655,70.7675,177.05,177.0,5.6486]
[1747237211853,65.12,177.05,176.97,551.86]
[1747237212155,5.6476,177.04,176.99,5.6489]
[1747237212352,65.12,177.05,176.97,551.86]
[1747237212555,65.12,177.05,176.95,64.0]
[1747237213357,5.6483,177.02,176.98,5.6494]
[1747237213559,65.12,177.05,176.98,5.6494]
[1747237213857,11.2803606,177.04,176.95,64.0]
[1747237214057,64.0,177.03,176.95,64.0]
[1747237214357,5.6493,176.99,176.9,64.0]
[1747237214656,64.94,176.98,176.9,64.0]
[1747237215860,128.94,176.98,176.86,67.706]
[1747237216054,1.8575,176.97,176.86,64.0]
[1747237216857,11.2803606,176.94,176.84,64.0]
[1747237217058,68.6199,176.93,176.84,64.0]
[1747237217358,5.6524,176.89,176.84,64.0]
[1747237217559,64.92,176.88,176.84,64.0]
[1747237217863,64.92,176.88,176.79,552.1]
[1747237218051,65.8775,176.87,176.79,64.02]
[1747237218658,5.6538,176.85,176.79,64.02]
[1747237218960,65.8775,176.87,176.79,64.02]
[1747237219160,64.86,176.87,176.83,5.654]
[1747237219358,64.86,176.87,176.79,64.02]
[1747237219756,64.86,176.87,176.82,5.6543]
[1747237219954,64.86,176.87,176.79,64.02]
[1747237220160,5.6542,176.84,176.77,1.7891]
[1747237220361,75.3203606,176.86,176.76,64.04]
[1747237220658,75.3203606,176.86,176.75,64.04]
[1747237220960,5.6553,176.8,176.75,69.6967]
[1747237221155,64.78,176.8,176.75,64.04]
[1747237221352,1.8662,176.85,176.76,64.76]
[1747237221558,64.74,176.91,176.76,64.76]
[1747237222465,64.74,176.91,176.86,5.6531]
[1747237223763,64.74,176.91,176.82,64.04]
[1747237224062,64.74,176.91,176.83,5.654]
[1747237224257,64.04,176.9,176.82,64.04]
[1747237224462,65.8998,176.9,176.82,64.04]
[1747237224661,65.8998,176.9,176.87,5.6529]
[1747237224961,65.8998,176.9,176.82,64.04]
[1747237225865,71.5519,176.9,176.82,64.04]
[1747237226163,10.0,176.94,176.82,64.04]
[1747237226362,64.56,176.93,176.82,64.04]
[1747237227164,5.6514,176.92,176.87,5.6527]
[1747237227366,64.56,176.93,176.82,64.04]
[1747237227761,64.56,176.93,176.89,5.6521]
[1747237227965,64.56,176.93,176.83,5.5062]
[1747237228368,64.56,176.93,176.89,5.6521]
[1747237228762,64.56,176.93,176.83,5.5062]
[1747237230666,80.2108,176.94,176.89,5.6521]
[1747237230866,64.48,176.92,176.89,5.6521]
[1747237231162,9.4477,176.98,176.87,64.56]
[1747237231361,64.44,176.97,176.87,64.56]
[1747237231772,5.6503,176.96,176.91,5.6516]
[1747237231970,64.44,176.97,176.87,64.56]
[1747237233370,64.44,176.97,176.93,5.6508]
[1747237233573,64.44,176.97,176.87,64.56]
[1747237233872,64.44,176.97,176.93,5.651]
[1747237234073,64.44,176.97,176.87,64.56]
[1747237234275,64.36,176.96,176.87,64.56]
[1747237234477,64.34,176.97,176.87,64.56]
[1747237234975,64.34,176.97,176.93,5.6508]
[1747237235279,64.34,176.97,176.87,64.56]
[1747237235476,69.9898,176.97,176.93,5.6509]
[1747237236376,64.34,176.97,176.93,5.6509]
[1747237236778,64.34,176.97,176.94,5.6507]
[1747237236977,64.34,176.97,176.87,64.56]
[1747237237177,64.34,176.97,176.83,5.5062]
[1747237237477,64.34,176.97,176.84,128.7]
[1747237237978,5.651,176.94,176.89,5.6523]
[1747237238279,5.651,176.94,176.84,128.7]
[1747237238477,5.6509,176.94,176.89,5.6523]
[1747237238878,5.6509,176.94,176.84,128.7]
[1747237239074,5.6506,176.95,176.9,5.6518]
[1747237239270,5.6506,176.95,176.84,128.7]
[1747237239677,5.6506,176.95,176.9,5.6517]
[1747237239978,5.6506,176.95,176.84,128.7]
[1747237240178,5.6506,176.95,176.9,5.6518]
[1747237240580,5.6506,176.95,176.84,128.7]
[1747237240784,64.34,176.97,176.84,128.7]
[1747237240980,11.2803606,176.93,176.84,64.54]
[1747237241175,5.6518,176.91,176.86,5.653]
[1747237241375,63.9,176.92,176.84,64.54]
[1747237241677,63.9,176.92,176.87,5.6528]
[1747237241878,63.9,176.92,176.84,64.54]
[1747237242280,5.6518,176.91,176.86,5.6532]
[1747237242580,63.9,176.92,176.86,5.6532]
[1747237243077,63.9,176.92,176.85,5.6535]
[1747237243579,5.652,176.9,176.85,5.6535]
[1747237243979,5.6517,176.91,176.84,64.54]
[1747237244179,63.9,176.92,176.84,64.54]
[1747237244480,5.6517,176.91,176.86,5.6531]
[1747237244679,5.6517,176.91,176.84,64.54]
[1747237244680,63.9,176.92,176.84,64.54]
[1747237244980,5.6522,176.9,176.85,5.6535]
[1747237245181,63.9,176.92,176.84,64.54]
[1747237245481,63.9,176.92,176.84,70.1937]
[1747237245675,63.9,176.92,176.84,64.54]
[1747237247082,5.6522,176.9,176.85,5.6533]
[1747237247278,63.9,176.92,176.84,64.54]
[1747237247582,5.6517,176.91,176.86,5.6532]
[1747237247783,5.6517,176.91,176.84,64.54]
[1747237248085,69.5515,176.92,176.87,5.6527]
[1747237248281,63.9,176.92,176.87,5.6527]
[1747237248981,5.6519,176.91,176.87,5.6527]
[1747237249377,63.74,176.93,176.84,64.54]
[1747237249585,63.74,176.93,176.85,1.7712]
[1747237249785,74.54,176.95,176.85,1.7712]
[1747237249984,1.876,176.98,176.86,3.6439]
[1747237250182,13.6851,177.02,176.87,63.74]
[1747237250383,10.0,177.02,176.89,11.2803606]
[1747237250683,10.0,177.02,176.9,128.32]
[1747237251586,11.2803606,177.0,176.86,3.6439]
[1747237251786,63.74,176.99,176.87,64.56]
[1747237252086,63.74,176.99,176.92,5.6511]
[1747237252288,5.65,176.97,176.87,64.56]
[1747237253178,5.6502,176.96,176.87,64.56]
[1747237253381,63.74,176.99,176.87,64.56]
[1747237253888,5.6499,176.97,176.94,5.6505]
[1747237254088,63.74,176.99,176.87,64.56]
[1747237254488,5.6504,176.96,176.93,5.6508]
[1747237254787,10.0,177.02,176.92,64.56]
[1747237254980,63.72,177.01,176.98,5.6492]
[1747237255386,63.72,177.01,176.94,3.6911]
[1747237255684,69.3686,177.01,176.97,5.6497]
[1747237255891,63.72,177.01,176.97,5.6497]
[1747237256089,5.649,177.0,176.94,3.6911]
[1747237256791,69.2686,177.01,176.98,5.6494]
[1747237256992,63.62,177.01,176.94,3.6911]
[1747237257390,5.6488,177.0,176.97,5.6496]
[1747237257590,10.0,177.02,176.94,3.6911]
[1747237257793,63.7,177.01,176.94,3.6911]
[1747237257992,69.3486,177.01,176.98,5.6492]
[1747237258688,69.3486,177.01,176.97,5.6497]
[1747237258891,5.6489,177.0,176.94,3.6911]
[1747237259490,5.6489,177.0,176.97,5.6495]
[1747237259693,69.3486,177.01,176.94,3.6911]
[1747237260088,69.3486,177.01,176.98,5.6493]
[1747237260288,63.7,177.01,176.93,66.3203]
[1747237260491,63.7,177.01,176.94,5.6506]
[1747237260695,65.5089,177.01,176.93,64.56]
[1747237261493,3.6627,177.0,176.93,64.56]
[1747237261692,63.68,176.99,176.89,63.68]
[1747237261990,63.68,176.99,176.92,5.6514]
[1747237262391,5.6501,176.96,176.92,5.6514]
[1747237262592,69.0501,176.96,176.89,63.68]
[1747237262794,63.4,176.96,176.89,63.68]
[1747237264193,63.46,177.0,176.89,127.14]
[1747237264589,5.6492,176.99,176.89,127.14]
[1747237264795,63.46,177.0,176.89,127.14]
[1747237265494,5.6497,176.98,176.94,5.6506]
[1747237266196,5.6497,176.98,176.95,5.6504]
[1747237266693,69.1091,177.0,176.96,5.6501]
[1747237266884,69.1091,177.0,176.89,127.14]
[1747237267090,63.46,177.0,176.98,5.6494]
[1747237267488,73.52,177.02,176.98,5.6494]
[1747237267691,73.52,177.02,176.95,63.68]
[1747237268796,73.52,177.02,176.88,3.5955]
[1747237268999,89.55615292,177.02,176.91,63.66]
[1747237269499,5.6507,176.95,176.91,69.3115]
[1747237269697,63.52,176.95,176.91,63.66]
[1747237269993,63.52,176.95,176.87,63.66]
[1747237270599,5.6509,176.94,176.9,5.6518]
[1747237271100,63.52,176.95,176.91,5.6515]
[1747237271995,63.52,176.95,176.89,5.6522]
[1747237272197,63.52,176.95,176.87,63.66]
[1747237273294,63.52,176.95,176.9,5.652]
[1747237273498,63.52,176.95,176.87,63.66]
[1747237273695,5.6499,176.97,176.87,63.66]
[1747237273897,63.68,176.96,176.87,63.66]
[1747237274296,5.6503,176.96,176.87,63.66]
[1747237274498,69.3103,176.96,176.87,63.66]
[1747237274703,63.66,176.96,176.87,63.66]
[1747237274905,5.6504,176.95,176.87,63.66]
[1747237275097,63.66,176.99,176.87,63.66]
[1747237275302,5.6498,176.97,176.94,5.6505]
[1747237275502,63.62,176.98,176.92,63.68]
[1747237275905,63.62,176.98,176.97,5.6498]
[1747237276405,5.6487,177.01,176.93,5.59]
[1747237276609,63.68,177.08,176.93,5.59]
[1747237276809,196.94414858,177.05,176.93,5.59]
[1747237277509,202.59144858,177.05,176.93,5.59]
[1747237277811,133.32414858,177.05,176.93,5.59]
[1747237278011,133.32414858,177.05,177.04,5.6475]
[1747237278210,63.68,177.12,177.01,63.68]
[1747237278512,5.646,177.09,177.06,5.6468]
[1747237279313,21.22,177.11,177.08,5.6463]
[1747237279514,63.6,177.1,177.01,63.68]
[1747237280215,63.6,177.1,176.96,16.03615292]
[1747237280513,63.6,177.1,176.97,127.3]
[1747237280710,5.6468,177.07,177.03,5.6476]
[1747237281015,63.6,177.1,177.03,5.6476]
[1747237281514,5.6468,177.07,177.04,5.6475]
[1747237282110,63.6,177.1,177.05,5.6472]
[1747237282315,63.6,177.1,177.02,63.66]
[1747237282716,69.2457,177.1,177.02,63.66]
[1747237282910,63.6,177.1,177.02,63.66]
[1747237284122,5.6464,177.08,177.02,63.66]
[1747237284322,63.6,177.1,177.02,63.66]
[1747237284718,69.2457,177.1,177.06,5.6469]
[1747237285016,10.0,177.11,177.02,63.66]
[1747237285216,5.6456,177.1,177.06,5.6466]
[1747237285615,5.6456,177.1,177.02,63.66]
[1747237287320,5.646,177.09,177.02,63.66]
[1747237287523,73.64,177.11,176.96,16.03615292]
[1747237287721,73.64,177.11,176.99,63.56]
[1747237288123,73.64,177.11,177.04,5.6473]
[1747237288623,5.6465,177.08,177.04,5.6473]
[1747237288823,73.64,177.11,177.05,5.6471]
[1747237289016,63.54,177.1,177.02,63.54]
[1747237289419,63.54,177.1,177.06,5.6467]
[1747237289619,69.1858,177.1,177.06,5.6467]
[1747237289924,69.1858,177.1,177.07,5.6466]
[1747237290523,63.54,177.1,177.02,63.54]
[1747237290926,67.3588,177.1,177.02,63.54]
[1747237291117,83.39495292,177.1,177.02,63.54]
[1747237291521,5.6475,177.05,177.0,5.6488]
[1747237291725,63.52,177.04,176.98,63.54]
[1747237292225,63.52,177.04,177.0,5.6486]
[1747237292422,63.52,177.04,176.98,63.54]
[1747237292625,63.52,177.04,177.03,5.6479]
[1747237293027,63.52,177.04,176.98,63.54]
[1747237294927,63.52,177.04,177.02,5.648]
[1747237295431,63.52,177.04,177.01,5.6484]
[1747237296028,63.52,177.04,177.02,5.6481]
[1747237296230,63.52,177.04,176.98,63.54]
[1747237296727,63.52,177.04,177.02,5.648]
[1747237296929,63.52,177.04,176.98,63.54]
[1747237297333,63.52,177.04,176.95,3.663]
[1747237297525,63.52,177.04,176.98,63.54]
[1747237297721,5.649,177.0,176.98,63.54]
[1747237297927,63.52,177.04,176.98,63.54]
[1747237298432,5.648,177.03,176.98,69.1893]
[1747237298731,63.52,177.04,176.98,63.54]
[1747237299732,69.1678,177.04,177.0,5.6488]
[1747237299929,63.52,177.04,176.98,63.54]
[1747237300638,63.52,177.04,176.94,551.9]
[1747237300926,1.7641,177.03,176.94,551.9]
[1747237301931,63.52,177.04,176.94,551.9]
[1747237301932,10.0,177.05,176.94,551.9]
[1747237302328,63.42,177.04,176.94,551.9]
[1747237302530,63.42,177.04,176.95,63.5]
[1747237302836,63.42,177.04,177.01,5.6483]
[1747237303230,63.42,177.04,176.99,63.54]
[1747237303430,63.42,177.04,177.01,5.6483]
[1747237303638,15.6474,177.05,177.01,5.6483]
[1747237303936,79.1274,177.05,177.01,5.6483]
[1747237304134,73.48,177.05,176.99,63.54]
[1747237305137,5.6484,177.02,176.99,63.54]
[1747237305436,73.48,177.05,176.96,5.6498]
[1747237305733,73.48,177.05,176.95,63.56]
[1747237305933,73.48,177.05,176.95,69.2103]
[1747237306133,73.48,177.05,176.95,63.56]
[1747237306335,10.0,177.04,176.95,63.56]
[1747237306526,10.0,177.04,176.95,69.2102]
[1747237306730,5.6487,177.01,176.95,63.56]
[1747237306929,63.34,177.0,176.95,63.56]
[1747237307136,3.8042,177.03,176.95,63.56]
[1747237307335,63.34,177.01,176.95,63.56]
[1747237307738,63.34,177.01,176.97,5.6496]
[1747237308131,68.9888,177.01,176.95,63.56]
[1747237308437,63.34,177.01,176.95,63.56]
[1747237309032,63.34,177.01,176.98,5.6494]
[1747237309336,68.9886,177.01,176.98,5.6494]
[1747237309536,63.34,177.01,176.97,5.6497]
[1747237309836,68.9886,177.01,176.95,63.56]
[1747237310334,5.6488,177.0,176.97,5.6496]
[1747237310638,63.34,177.01,176.95,63.56]
[1747237311031,5.6496,176.98,176.95,69.2102]
[1747237311232,63.34,177.01,176.95,63.56]
[1747237312134,5.6494,176.99,176.95,63.56]
[1747237312335,63.34,177.01,176.95,63.56]
[1747237313241,68.9886,177.01,176.97,5.6495]
[1747237313440,68.9886,177.01,176.95,63.56]
[1747237313734,5.649,177.0,176.97,5.6496]
[1747237314140,63.34,177.01,176.95,63.56]
[1747237314439,5.6486,177.01,176.98,5.6493]
[1747237315244,5.6489,177.0,176.97,5.6497]
[1747237315431,63.02,177.02,176.95,63.56]
[1747237315844,63.02,177.02,176.98,5.6492]
[1747237315845,5.6486,177.01,176.98,5.6492]
[1747237316042,63.02,177.02,176.98,5.6492]
[1747237316441,5.6487,177.01,176.98,5.6492]
[1747237316845,63.0,177.02,176.99,5.6489]
[1747237317439,68.6484,177.02,176.98,5.6493]
[1747237317644,63.0,177.02,176.95,63.56]
[1747237318148,5.649,177.0,176.97,5.6495]
[1747237318445,63.0,177.02,176.95,63.56]
[1747237319141,5.6501,176.97,176.93,5.651]
[1747237319345,68.5501,176.97,176.91,62.92]
[1747237319646,68.5501,176.97,176.93,5.6508]
[1747237320045,5.6501,176.96,176.93,5.6508]
[1747237320242,62.9,176.97,176.92,5.6512]
[1747237320441,68.5499,176.97,176.91,62.92]
[1747237320642,62.9,176.97,176.91,62.92]
[1747237320840,62.9,176.97,176.93,5.6509]
[1747237321042,62.9,176.97,176.91,62.92]
[1747237321446,5.6507,176.95,176.91,68.5716]
[1747237321739,5.4619,177.0,176.91,62.92]
[1747237321936,62.88,177.0,176.91,62.92]
[1747237322141,10.0,177.04,176.92,1.763]
[1747237322344,62.88,177.05,176.92,1.763]
[1747237322549,5.6478,177.04,176.92,1.763]
[1747237322746,62.88,177.05,176.92,1.763]
[1747237323347,68.3207,177.09,176.92,1.763]
[1747237323550,62.92,177.08,176.99,5.6491]
[1747237323752,72.92,177.08,176.99,5.6491]
[1747237324054,72.92,177.08,176.98,68.5894]
[1747237324350,72.92,177.08,176.98,62.94]
[1747237324950,72.92,177.08,176.99,5.6491]
[1747237325151,72.92,177.08,176.98,62.94]
[1747237325354,10.0,177.08,176.98,62.94]
[1747237325650,62.84,177.07,176.98,62.94]
[1747237325850,10.0,177.08,176.98,62.94]
[1747237326248,72.86,177.08,176.98,62.94]
[1747237326446,10.0,177.08,176.98,62.94]
[1747237326646,10.0,177.08,177.04,5.6473]
[1747237327241,5.6468,177.07,177.03,5.6477]
[1747237327447,10.0,177.08,176.98,62.94]
[1747237327846,72.86,177.08,176.98,62.94]
[1747237328648,10.0,177.08,176.98,62.94]
[1747237328854,72.78,177.08,176.98,62.94]
[1747237329054,10.0,177.08,176.98,62.94]
[1747237329251,15.6465,177.08,177.06,5.6469]
[1747237329453,62.78,177.1,177.04,62.92]
[1747237329955,62.78,177.1,177.04,68.5673]
[1747237330157,62.78,177.1,177.04,62.92]
[1747237330559,62.78,177.1,177.06,5.6467]
[1747237331256,72.94,177.13,177.04,62.92]
[1747237331561,10.0,177.13,177.04,62.92]
[1747237331756,10.0,177.13,177.05,1.9271]
[1747237331952,138.8842973,177.14,177.05,3.8384]
[1747237332253,133.2395973,177.14,177.05,66.5384]
[1747237332459,5.6448,177.13,177.05,66.5384]
[1747237332653,133.2395973,177.14,177.05,66.5384]
[1747237332858,138.8841973,177.14,177.1,5.6454]
[1747237333156,125.58,177.17,177.09,62.92]
[1747237333360,5.6439,177.16,177.13,5.6444]
[1747237333558,5.6439,177.16,177.09,62.92]
[1747237333559,62.66,177.17,177.09,62.92]
[1747237333853,68.3036,177.17,177.13,5.6445]
[1747237334060,62.66,177.17,177.13,5.6445]
[1747237334564,5.6439,177.16,177.12,5.6449]
[1747237335067,62.66,177.17,177.05,3.8384]
[1747237335258,62.66,177.17,177.09,62.9]
[1747237335664,62.66,177.17,177.09,68.5457]
[1747237336654,62.66,177.17,177.09,62.9]
[1747237336858,5.6442,177.15,177.09,62.9]
[1747237337058,62.66,177.17,177.1,5.6454]
[1747237339169,5.6444,177.14,177.1,5.6454]
[1747237339362,16.03615292,177.23,177.09,62.9]
[1747237339557,67.8421,177.2,177.09,62.9]
[1747237339972,67.8421,177.2,177.11,5.645]
[1747237340268,62.46,177.18,177.09,62.9]
[1747237340467,62.46,177.18,177.1,62.9]
[1747237340670,62.46,177.18,177.12,5.645]
[1747237340867,62.46,177.18,177.1,62.9]
[1747237341974,5.6442,177.15,177.11,5.6452]
[1747237342173,62.46,177.18,177.1,62.9]
[1747237343273,5.6433,177.18,177.1,62.9]
[1747237343473,68.1033,177.18,177.1,62.9]
[1747237343973,68.1033,177.18,177.14,5.6441]
[1747237344171,62.46,177.18,177.1,62.9]
[1747237344570,62.46,177.18,177.15,5.644]
[1747237344874,68.1033,177.18,177.1,62.9]
[1747237345074,68.1033,177.18,177.13,5.6445]
[1747237345075,62.46,177.18,177.13,5.6445]
[1747237345374,62.46,177.18,177.1,62.9]
[1747237345674,62.46,177.18,177.11,62.9]
[1747237346177,62.46,177.18,177.11,68.5453]
[1747237346371,62.46,177.18,177.11,62.9]
[1747237346578,68.1032,177.18,177.11,62.9]
[1747237346773,10.0,177.19,177.11,62.9]
[1747237347281,68.1023,177.21,177.17,5.6432]
[1747237347770,5.6425,177.2,177.12,3.6996]
[1747237347970,5.6425,177.2,177.16,5.6435]
[1747237348173,68.1023,177.21,177.12,3.6996]
[1747237348374,68.1023,177.21,177.17,5.6432]
[1747237348567,62.46,177.21,177.12,3.6996]
[1747237348772,5.6426,177.2,177.12,3.6996]
[1747237348980,5.6426,177.2,177.16,5.6435]
[1747237349174,10.00416744,177.25,177.16,62.44]
[1747237349374,5.6419,177.22,177.16,62.44]
[1747237349666,5.6419,177.22,177.18,5.6429]
[1747237349873,5.6416,177.23,177.16,62.44]
[1747237350173,5.6416,177.23,177.2,5.6423]
[1747237350675,5.6419,177.22,177.18,5.6428]
[1747237350875,72.44416744,177.25,177.16,62.44]
[1747237351068,5.6421,177.22,177.18,5.643]
[1747237351378,5.6421,177.22,177.16,62.44]
[1747237351578,5.6416,177.23,177.2,5.6424]
[1747237352279,5.6418,177.22,177.19,5.6426]
[1747237352579,5.6418,177.22,177.16,62.44]
[1747237352969,10.0,177.32,177.19,10.00416744]
[1747237353172,74.7,177.32,177.2,3.6694]
[1747237353377,74.7,177.32,177.24,5.6409]
[1747237353578,74.7,177.32,177.21,62.44]
[1747237354275,10.00416744,177.31,177.25,5.6408]
[1747237354577,5.6396,177.3,177.21,62.44]
[1747237354879,5.6396,177.3,177.24,5.6409]
[1747237355083,5.6396,177.3,177.21,62.44]
[1747237355277,5.639,177.31,177.21,62.44]
[1747237355578,64.68,177.3,177.21,62.44]
[1747237356481,5.6397,177.29,177.24,5.641]
[1747237356784,64.68,177.3,177.21,62.44]
[1747237357080,5.64,177.28,177.21,62.44]
[1747237357280,64.68,177.3,177.21,62.44]
[1747237357481,74.68416744,177.3,177.22,62.42]
[1747237357682,5.6404,177.27,177.22,68.0616]